bitfinex/quotes_ETHUSD_20260111
["timestamp","ask_amount","ask_price","bid_price","bid_amount"]
[1768153052753,0.93451168,3120.0,3118.7,0.3554801]
[1768153053108,0.93451168,3120.0,3118.8,3.20636142]
[1768153053309,0.93451168,3120.0,3118.9,0.0096234]
[1768153053751,0.93451168,3120.0,3119.0,0.252]
[1768153053752,0.93370896,3119.9,3119.0,0.252]
[1768153054116,0.00080272,3120.0,3119.0,0.252]
[1768153054448,0.00080272,3120.0,3119.1,0.0096234]
[1768153055143,0.00080272,3120.0,3119.1,3.21560664]
[1768153056411,0.04086682,3120.0,3119.1,3.21560664]
[1768153056616,0.00080272,3120.0,3119.3,0.0096234]
[1768153057150,0.00080272,3120.0,3119.4,3.20574469]
[1768153057644,0.00080272,3120.0,3119.3,3.2058163]
[1768153058021,0.67350675,3120.0,3119.3,6.41166376]
[1768153058240,0.67270403,3119.9,3119.5,0.0096234]
[1768153058418,0.00080272,3120.0,3119.6,0.252]
[1768153059376,0.00080272,3120.0,3119.7,3.20543642]
[1768153059661,0.00080272,3120.0,3119.7,6.41087284]
[1768153059945,0.00080272,3120.0,3119.4,3.21731358]
[1768153059946,0.00080272,3120.0,3119.8,0.252]
[1768153061930,0.00080272,3120.0,3119.8,3.45730923]
[1768153063546,0.00080272,3120.0,3119.7,3.20541484]
[1768153063721,0.00080272,3120.0,3119.8,0.252]
[1768153064928,0.00080272,3120.0,3119.7,3.20541484]
[1768153064929,0.00080272,3120.0,3119.9,0.252]
[1768153066449,0.00080272,3120.0,3119.9,3.45723093]
[1768153066855,0.98627178,3120.4,3119.9,3.45723093]
[1768153067056,0.98787179,3120.4,3119.9,3.45723093]
[1768153067262,1.46674172,3120.4,3119.9,3.45723093]
[1768153067461,1.46674172,3120.4,3119.9,6.66246186]
[1768153067662,1.46674172,3120.4,3119.9,3.45723093]
[1768153068028,0.4073833,3120.4,3119.9,3.45723093]
[1768153068361,0.4073833,3120.4,3120.0,0.252]
[1768153068563,0.51936551,3120.3,3120.0,0.252]
[1768153068929,3.8,3120.5,3120.0,0.252]
[1768153069158,3.8,3120.5,3119.9,6.41046186]
[1768153069362,5.48776175,3120.6,3120.1,0.252]
[1768153070054,5.48776175,3120.6,3120.1,3.4569741]
[1768153070252,1.68693425,3120.5,3120.1,3.4569741]
[1768153070565,0.6781549,3120.4,3120.1,3.4569741]
[1768153070733,5.48776175,3120.6,3120.1,3.4569741]
[1768153070934,3.8008275,3120.6,3120.1,6.66199957]
[1768153071156,5.48776175,3120.6,3120.1,6.66199957]
[1768153071670,3.8008275,3120.6,3120.1,6.66199957]
[1768153071832,3.8008275,3120.6,3120.1,3.4569741]
[1768153072035,4.34960368,3120.6,3120.1,3.4569741]
[1768153072235,0.0008275,3120.6,3120.1,7.64392688]
[1768153073334,0.0008275,3120.6,3120.1,6.66199957]
[1768153074257,0.0008275,3120.6,3120.2,0.252]
[1768153074459,0.0008275,3120.6,3120.3,0.252]
[1768153074759,0.0008275,3120.6,3120.4,0.252]
[1768153075275,3.548,3120.3,3120.0,0.98192731]
[1768153075587,0.0008275,3120.6,3120.3,3.20805423]
[1768153076589,0.0008275,3120.6,3120.4,3.20471734]
[1768153077086,1.13898774,3120.7,3120.4,3.20471734]
[1768153077285,1.13898774,3120.7,3120.3,3.20478058]
[1768153077896,1.13898774,3120.8,3120.3,3.20478058]
[1768153078292,1.12525954,3120.7,3120.3,3.20478058]
[1768153078487,0.00405901,3120.7,3120.3,3.20478058]
[1768153078788,7.45627178,3121.1,3120.2,6.41063383]
[1768153078992,7.53601248,3121.1,3120.2,6.41063383]
[1768153079569,0.98627178,3121.0,3120.3,0.252]
[1768153079773,0.98627178,3121.2,3120.3,0.252]
[1768153080289,0.98627178,3121.2,3120.2,6.41063383]
[1768153080290,0.98627178,3121.2,3120.4,0.252]
[1768153080793,0.98627178,3121.2,3120.4,3.45668983]
[1768153080991,0.64324255,3121.1,3120.4,3.45668983]
[1768153081191,0.64324255,3121.1,3120.5,0.252]
[1768153081398,1.62951433,3121.1,3120.6,0.252]
[1768153082011,1.62951433,3121.1,3120.7,0.252]
[1768153082813,0.68600003,3121.0,3120.7,0.252]
[1768153083014,0.91755147,3120.9,3120.7,0.252]
[1768153083216,0.68600003,3120.8,3120.7,0.252]
[1768153083385,0.98627178,3120.7,3120.2,0.00082832]
[1768153083578,0.68682835,3120.6,3120.3,0.17715681]
[1768153083890,0.68600003,3120.5,3120.4,0.252]
[1768153084091,1.98600003,3120.5,3120.4,0.252]
[1768153085114,0.00082832,3120.6,3120.4,3.45667034]
[1768153085716,0.9322293,3121.3,3120.4,3.45667034]
[1768153086288,0.9322293,3121.3,3120.4,6.66138768]
[1768153086488,0.41359303,3121.2,3120.4,3.45667034]
[1768153086804,1.34582233,3121.2,3120.4,6.66138768]
[1768153087010,0.9322293,3121.2,3120.4,6.66138768]
[1768153088394,0.90787328,3121.5,3120.4,7.59264775]
[1768153089329,0.90787328,3121.5,3120.5,0.93126007]
[1768153090209,0.90787328,3121.7,3120.5,0.93126007]
[1768153090410,2.24232712,3122.0,3120.7,0.93126007]
[1768153090411,0.90787328,3122.0,3120.7,0.93126007]
[1768153091142,0.90787328,3121.8,3120.8,0.252]
[1768153091337,0.90787328,3121.8,3120.9,0.252]
[1768153091563,0.90787328,3121.8,3120.9,3.45616526]
[1768153091764,0.90787328,3121.4,3121.0,0.252]
[1768153091905,0.90787328,3121.4,3120.6,3.20443041]
[1768153091906,0.90787328,3121.4,3121.1,0.09]
[1768153092112,0.90787328,3121.4,3121.2,0.16358673]
[1768153092510,0.94791941,3121.4,3121.2,0.11380841]
[1768153092741,0.20479194,3121.3,3121.2,0.11380841]
[1768153093316,0.20479194,3121.3,3121.2,0.04072178]
[1768153096444,0.20479194,3121.3,3121.2,0.252]
[1768153096869,0.89131921,3121.3,3121.2,0.252]
[1768153099487,0.68652727,3121.3,3121.2,0.252]
[1768153099952,6.47,3121.6,3121.2,3.45589593]
[1768153100272,6.47,3121.6,3121.2,6.65979186]
[1768153100456,6.47,3121.6,3121.2,3.45589593]
[1768153100780,0.90787328,3122.2,3121.2,6.65979186]
[1768153100963,0.73778733,3122.1,3121.2,7.59105193]
[1768153101346,1.64566061,3122.1,3121.2,7.59105193]
[1768153102275,0.73778733,3122.1,3121.4,3.20369065]
[1768153102451,0.73778733,3122.1,3121.4,6.4073813]
[1768153102637,0.73778733,3122.1,3121.4,7.33864137]
[1768153102838,0.73778733,3122.1,3121.5,0.93126007]
[1768153104257,0.73778733,3122.1,3121.6,3.20348539]
[1768153104459,0.73778733,3122.1,3121.7,0.252]
[1768153106192,0.001,3121.8,3121.7,0.252]
[1768153106497,0.90787328,3122.2,3120.9,3.20413452]
[1768153106697,0.90787328,3121.9,3121.1,3.20394908]
[1768153106905,0.90787328,3121.9,3121.0,0.252]
[1768153106906,0.94791299,3121.9,3121.2,3.20381564]
[1768153107070,0.90787328,3121.9,3121.0,3.45601388]
[1768153107267,0.90787328,3121.9,3121.0,0.252]
[1768153107607,0.90787328,3121.9,3121.1,3.20394627]
[1768153107765,1.10866061,3121.8,3121.0,0.252]
[1768153108061,1.10866061,3121.8,3121.2,3.2038921]
[1768153108259,0.90787328,3121.8,3121.3,0.252]
[1768153108464,0.90787328,3121.8,3120.6,0.93126007]
[1768153108694,0.90787328,3121.8,3121.1,3.20392895]
[1768153108867,0.90787328,3121.8,3121.2,0.252]
[1768153109197,0.90787328,3121.8,3121.2,3.45588915]
[1768153110196,0.90787328,3122.0,3121.2,3.45588915]
[1768153111906,0.41108459,3121.9,3121.2,3.45588915]
[1768153112473,1.51108459,3121.9,3121.2,3.45588915]
[1768153113220,1.1,3121.9,3121.2,3.45588915]
[1768153114821,1.1,3121.9,3121.2,7.6518146]
[1768153115895,1.1,3121.9,3121.3,0.99202952]
[1768153116094,7.43864604,3122.3,3121.3,0.99202952]
[1768153116295,0.68746807,3122.2,3121.3,0.99202952]
[1768153116495,0.96864604,3122.1,3121.3,0.76518146]
[1768153117326,0.96864604,3122.1,3121.4,3.20369065]
[1768153117821,0.001,3121.6,3121.4,3.20369065]
[1768153118023,6.47,3122.3,3121.4,4.19572017]
[1768153118219,0.96864604,3122.1,3121.4,3.20369065]
[1768153118723,0.96864604,3122.1,3121.4,6.4073813]
[1768153119026,7.43864604,3122.3,3121.4,7.39941082]
[1768153119324,0.687923,3122.2,3121.6,3.20348539]
[1768153119538,0.687923,3122.2,3121.7,0.252]
[1768153120540,1.65656904,3122.2,3121.7,0.252]
[1768153120832,0.687923,3122.1,3121.7,0.252]
[1768153121206,0.687923,3122.1,3121.8,0.252]
[1768153121403,1.00868447,3122.0,3121.0,0.99202952]
[1768153121607,1.65656904,3121.9,3121.2,3.20379795]
[1768153121803,0.96864604,3121.9,3121.1,3.45591006]
[1768153122210,0.96864604,3121.9,3121.2,3.20388396]
[1768153122431,0.96864604,3121.9,3121.1,4.44801598]
[1768153122635,0.8126569,3122.1,3121.2,0.4448016]
[1768153122835,0.68805052,3122.0,3121.3,4.19578863]
[1768153123022,6.47,3122.3,3121.4,0.99202952]
[1768153123332,0.68816584,3122.2,3121.5,3.20352763]
[1768153123534,0.68816584,3122.2,3121.6,0.252]
[1768153123839,1.68446262,3122.1,3121.7,0.252]
[1768153124035,0.68816584,3122.0,3121.7,0.252]
[1768153125408,1.65681188,3122.0,3121.3,3.20374095]
[1768153125634,0.96864604,3122.0,3121.4,0.252]
[1768153125933,0.68833247,3121.9,3121.4,0.252]
[1768153126436,0.68833247,3121.9,3121.4,3.45568848]
[1768153127241,8.29648167,3122.3,3121.4,1.24402952]
[1768153127473,2.8071435,3122.2,3121.4,3.45568691]
[1768153127767,0.68858129,3122.1,3121.4,3.45568691]
[1768153128170,0.68858129,3122.1,3121.4,0.252]
[1768153128369,0.68858129,3122.1,3121.4,3.45568833]
[1768153129068,0.68858129,3122.1,3121.4,3.45881663]
[1768153129462,0.68858129,3122.1,3121.5,0.002]
[1768153129673,0.68858129,3122.1,3121.5,0.99402952]
[1768153130053,0.68858129,3122.0,3121.5,0.99715782]
[1768153130254,0.001,3121.6,3121.5,0.99715782]
[1768153130457,7.32783563,3122.3,3121.5,0.99715782]
[1768153130774,0.68903966,3122.2,3121.5,0.99715782]
[1768153130961,0.68903966,3122.1,3121.5,0.99715782]
[1768153131165,0.68903966,3122.0,3121.5,0.99715782]
[1768153131361,8.59212985,3122.3,3121.5,0.99715782]
[1768153131672,0.68903505,3122.2,3121.5,4.20065488]
[1768153131861,0.68903505,3122.1,3121.5,4.20065488]
[1768153132177,0.68903505,3122.0,3121.5,4.20065488]
[1768153132343,8.59212985,3122.3,3121.5,4.20065488]
[1768153132675,0.68903045,3122.2,3121.5,4.20065488]
[1768153133503,0.68903045,3122.2,3121.5,7.40424289]
[1768153133773,0.68903045,3122.2,3121.5,4.20065488]
[1768153134143,8.59212985,3122.3,3121.5,4.20065488]
[1768153134144,0.68903045,3122.1,3121.5,4.20065488]
[1768153134473,0.68903045,3122.0,3121.6,0.99202952]
[1768153134681,8.59212985,3122.3,3121.6,0.99202952]
[1768153134977,0.6890744,3122.2,3121.6,0.99202952]
[1768153135161,0.6890744,3122.1,3121.6,0.99202952]
[1768153135368,0.6890744,3122.0,3121.6,0.99202952]
[1768153135677,8.59212985,3122.3,3121.6,0.99202952]
[1768153135879,0.68911787,3122.2,3121.6,0.99202952]
[1768153136083,0.68911787,3122.1,3121.6,0.99202952]
[1768153136246,0.68911787,3122.0,3121.6,3.20346469]
[1768153136446,0.68911787,3121.9,3121.6,3.20346469]
[1768153136646,9.56077589,3122.3,3121.6,3.20346469]
[1768153136848,1.19883525,3122.2,3121.6,3.20346469]
[1768153137149,0.68914568,3122.1,3121.6,3.20346469]
[1768153139379,0.68914568,3122.1,3121.6,4.19549421]
[1768153139685,0.68914568,3122.0,3121.6,4.19549421]
[1768153139875,6.47,3122.3,3121.6,4.19549421]
[1768153140078,0.68919859,3122.2,3121.6,4.19549421]
[1768153140257,0.68919859,3122.2,3121.7,0.99202952]
[1768153140982,0.68919859,3122.2,3121.8,3.20328015]
[1768153141161,0.68919859,3122.2,3121.9,0.252]
[1768153144392,0.9405728,3122.1,3121.5,0.0051283]
[1768153144688,0.9405728,3122.1,3121.6,0.092]
[1768153144990,0.9405728,3122.1,3121.6,3.29548175]
[1768153145194,0.9405728,3122.1,3121.6,3.94591054]
[1768153146566,6.47,3122.3,3121.6,4.91254485]
[1768153146774,0.68912684,3122.2,3121.7,0.96663431]
[1768153147294,0.68912684,3122.2,3121.9,0.96663431]
[1768153148328,4.3468282,3122.8,3122.1,0.96663431]
[1768153148329,0.00080416,3122.8,3122.1,0.96663431]
[1768153148463,0.00080416,3122.8,3122.3,0.99677766]
[1768153149298,0.00080416,3122.8,3122.4,3.20266461]
[1768153153294,0.00080416,3122.8,3122.4,7.40210688]
[1768153153494,0.00080416,3122.8,3122.4,3.20266461]
[1768153153820,0.00080416,3122.8,3122.4,3.54813107]
[1768153154528,0.001,3122.5,3122.4,3.54813107]
[1768153154687,0.00080416,3122.8,3122.4,3.54813107]
[1768153156832,0.91553729,3122.8,3122.4,0.34546646]
[1768153157053,0.91553729,3122.8,3122.3,3.20275032]
[1768153157227,0.91553729,3122.8,3122.2,3.45482207]
[1768153157547,0.91553729,3122.8,3122.3,0.252]
[1768153158240,0.91553729,3122.8,3122.2,3.20282207]
[1768153158431,0.91553729,3122.8,3122.4,0.252]
[1768153160412,0.00080416,3122.8,3122.4,0.252]
[1768153161114,0.00080416,3122.8,3122.4,4.22009539]
[1768153161310,0.00080416,3122.8,3122.4,8.41953766]
[1768153161510,0.00080416,3122.8,3122.5,0.99677766]
[1768153162269,0.00080416,3122.8,3122.5,4.19925406]
[1768153162816,0.91473313,3123.2,3122.5,7.4018161]
[1768153163017,0.91473313,3123.2,3122.5,8.24374175]
[1768153164648,0.91473313,3123.4,3122.5,8.24374175]
[1768153164947,0.91473313,3123.4,3122.6,0.99677766]
[1768153165652,0.91473313,3123.4,3122.5,4.04440205]
[1768153166141,0.91473313,3123.4,3122.7,0.002]
[1768153166450,0.001,3122.9,3122.7,0.002]
[1768153172262,0.001,3122.9,3122.5,3.94640205]
[1768153173557,0.91473313,3123.5,3122.5,8.14574175]
[1768153173757,0.91473313,3123.3,3122.5,7.14896409]
[1768153174061,0.91473313,3123.3,3122.6,0.74037683]
[1768153175738,0.91473313,3123.3,3122.6,3.94282764]
[1768153176362,0.91228093,3123.1,3122.6,3.94282764]
[1768153177649,0.91228093,3123.4,3122.6,3.94282764]
[1768153177964,1.6010788,3123.3,3122.6,3.94282764]
[1768153178163,0.68879787,3123.2,3122.6,3.94282764]
[1768153178366,1.6010788,3123.2,3122.6,3.94282764]
[1768153178659,1.6010788,3123.1,3122.6,3.94282764]
[1768153178830,0.91228093,3123.1,3122.6,3.94282764]
[1768153179035,0.91228093,3123.3,3122.6,3.94282764]
[1768153179261,0.68919665,3123.2,3122.7,0.002]
[1768153179441,0.001,3123.0,3122.7,0.002]
[1768153179765,0.91228093,3123.1,3122.7,0.002]
[1768153185864,0.91228093,3123.6,3122.7,0.3224562]
[1768153186066,0.68920023,3123.5,3122.8,3.20225438]
[1768153186269,0.68920023,3123.4,3122.9,0.252]
[1768153189165,0.68920023,3123.4,3122.9,3.92586718]
[1768153189361,0.91228093,3123.7,3122.9,3.92586718]
[1768153189676,1.60152003,3123.6,3122.9,3.92586718]
[1768153189877,0.6892391,3123.5,3122.9,3.92586718]
[1768153191041,0.6892391,3123.5,3122.9,3.92786718]
[1768153191246,0.001,3123.1,3123.0,0.80709401]
[1768153191454,0.91228093,3123.4,3122.9,3.4561129]
[1768153192146,0.91228093,3123.4,3122.9,3.47220029]
[1768153193770,0.91228093,3123.4,3122.9,3.4561129]
[1768153193963,0.91228093,3123.7,3122.9,3.4561129]
[1768153194157,0.68896832,3123.6,3122.9,4.24827126]
[1768153194561,1.60124925,3123.6,3122.9,4.24827126]
[1768153194878,0.68896832,3123.5,3122.9,4.24827126]
[1768153195078,0.68896832,3123.5,3122.9,5.18910352]
[1768153195267,0.91228093,3123.6,3122.9,8.39125536]
[1768153195466,6.47,3123.8,3123.0,4.04109622]
[1768153195670,6.47,3123.8,3123.1,0.252]
[1768153195671,0.91228093,3123.6,3123.1,0.252]
[1768153197883,0.91228093,3123.6,3122.9,3.20411911]
[1768153198185,0.91228093,3123.6,3123.0,0.252]
[1768153200371,0.91228093,3123.6,3123.0,3.45404249]
[1768153200574,0.91228093,3123.6,3123.1,0.66581912]
[1768153202195,0.91228093,3123.6,3123.2,0.252]
[1768153205088,0.001,3123.3,3123.2,0.252]
[1768153223218,0.68960306,3123.5,3123.2,0.252]
[1768153223419,6.47,3123.8,3123.2,4.45075085]
[1768153223624,0.68962443,3123.7,3123.2,4.45075085]
[1768153224233,0.68962443,3123.7,3123.2,1.24890659]
[1768153225105,0.68962443,3123.7,3123.3,0.99690659]
[1768153225595,1.65461754,3123.7,3123.2,0.252]
[1768153225795,0.68962443,3123.6,3123.2,0.252]
[1768153227232,0.68962443,3123.6,3123.3,0.252]
[1768153228596,0.001,3123.4,3123.3,0.252]
[1768153257464,0.68919568,3123.7,3123.4,9.999]
[1768153269372,0.68919568,3123.6,3123.4,9.999]
[1768153269678,4.13679618,3123.9,3123.4,9.999]
[1768153269844,0.68945675,3123.8,3123.4,9.999]
[1768153270044,0.68945675,3123.7,3123.4,9.999]
[1768153270245,0.68945675,3123.6,3123.4,9.999]
[1768153270460,3.20213458,3123.9,3123.4,9.999]
[1768153270666,0.68945892,3123.8,3123.4,9.999]
[1768153270866,0.68945892,3123.7,3123.4,9.999]
[1768153271144,0.68945892,3123.6,3123.4,9.999]
[1768153271372,3.20212721,3123.9,3123.5,0.252]
[1768153271572,0.68945725,3123.8,3123.5,0.252]
[1768153271774,0.68945725,3123.7,3123.5,0.252]
[1768153271973,0.68945725,3123.6,3123.5,0.252]
[1768153272477,0.68945725,3123.8,3123.5,0.252]
[1768153272685,0.68945725,3123.7,3123.5,0.252]
[1768153272859,0.68945725,3123.6,3123.5,0.252]
[1768153273174,0.68945725,3123.8,3123.5,0.252]
[1768153273346,0.68945725,3123.7,3123.5,0.252]
[1768153273549,0.68945725,3123.6,3123.5,0.252]
[1768153273740,0.68945725,3123.8,3123.5,0.252]
[1768153273945,0.68945725,3123.7,3123.5,0.252]
[1768153274146,0.68945725,3123.6,3123.5,0.252]
[1768153274371,0.68945725,3123.8,3123.5,0.252]
[1768153274578,0.68945725,3123.7,3123.5,0.252]
[1768153274780,0.68945725,3123.6,3123.5,0.252]
[1768153275146,0.68945725,3123.8,3123.5,0.252]
[1768153275377,0.68945725,3123.7,3123.5,0.252]
[1768153275581,0.68945725,3123.6,3123.5,0.252]
[1768153275870,0.68945725,3123.8,3123.5,0.252]
[1768153276073,0.68945725,3123.7,3123.5,0.252]
[1768153276278,0.68945725,3123.6,3123.5,0.252]
[1768153276659,0.68945725,3123.8,3123.5,0.252]
[1768153276852,0.68945725,3123.7,3123.5,0.252]
[1768153277051,0.68945725,3123.6,3123.5,0.252]
[1768153277276,0.68945725,3123.8,3123.5,0.252]
[1768153277475,0.68945725,3123.7,3123.5,0.252]
[1768153277671,0.68945725,3123.6,3123.5,0.252]
[1768153278446,0.68945725,3123.8,3123.5,10.251]
[1768153278649,0.68945725,3123.7,3123.5,10.251]
[1768153278961,0.68945725,3123.6,3123.5,10.251]
[1768153279343,0.68945725,3123.8,3123.5,10.251]
[1768153279579,0.68945725,3123.7,3123.5,10.251]
[1768153279767,0.68945725,3123.6,3123.5,10.251]
[1768153280260,0.68945725,3123.8,3123.5,10.251]
[1768153280467,0.68945725,3123.7,3123.5,10.251]
[1768153280671,0.68945725,3123.6,3123.5,10.251]
[1768153280979,0.68945725,3123.8,3123.5,10.251]
[1768153281283,0.68945725,3123.7,3123.5,10.251]
[1768153281452,0.68945725,3123.6,3123.5,10.251]
[1768153281652,0.68945725,3123.8,3123.5,10.251]
[1768153281873,0.68945725,3123.7,3123.5,10.251]
[1768153282081,0.68945725,3123.6,3123.5,10.251]
[1768153282872,0.68945725,3123.8,3123.5,10.251]
[1768153283067,0.68945725,3123.7,3123.5,10.251]
[1768153283272,0.68945725,3123.6,3123.5,10.251]
[1768153283651,0.68945725,3123.8,3123.5,10.251]
[1768153283851,0.68945725,3123.7,3123.5,10.251]
[1768153284062,0.68945725,3123.6,3123.5,10.251]
[1768153284366,0.68945725,3123.6,3123.5,9.999]
[1768153284665,0.68945725,3123.6,3123.5,10.251]
[1768153290368,0.68945725,3123.8,3123.5,10.251]
[1768153290570,0.68945725,3123.7,3123.5,10.251]
[1768153290769,0.68945725,3123.6,3123.5,10.251]
[1768153291169,0.68945725,3123.8,3123.5,10.251]
[1768153291369,0.68945725,3123.7,3123.5,10.251]
[1768153291577,0.68945725,3123.6,3123.5,10.251]
[1768153291978,0.68945725,3123.7,3123.5,10.251]
[1768153292161,0.68945725,3123.6,3123.5,10.251]
[1768153292606,0.68945725,3123.7,3123.5,10.251]
[1768153292889,6.47,3124.1,3123.5,0.252]
[1768153293090,2.96146128,3124.0,3123.5,0.09245259]
[1768153293976,0.97122639,3123.9,3123.5,0.09245259]
[1768153295195,0.97122639,3123.8,3123.5,0.09245259]
[1768153298387,3.20112944,3123.9,3123.5,0.09245259]
[1768153303505,4.17235583,3123.9,3123.5,0.09245259]
[1768153303705,0.97122639,3123.7,3122.9,0.002]
[1768153303893,0.97122639,3123.5,3123.0,0.252]
[1768153304877,0.68926463,3123.4,3123.0,0.252]
[1768153307910,0.68926463,3123.4,3122.4,0.00280424]
[1768153307911,0.97122639,3123.2,3122.4,0.00081023]
[1768153308110,0.00080424,3122.8,3122.5,0.252]
[1768153313898,0.00080424,3122.8,3122.5,1.1722782]
[1768153314655,0.00080424,3122.8,3122.5,0.9202782]
[1768153314826,0.00080424,3122.8,3122.6,0.252]
[1768153316425,0.00080424,3122.8,3122.6,0.25037954]
[1768153316623,0.00080424,3122.8,3122.4,0.92108843]
[1768153316796,0.00080424,3122.8,3122.7,0.252]
[1768153325633,0.00080424,3122.8,3122.7,1.1727299]
[1768153326435,0.92820182,3123.2,3122.7,0.252]
[1768153329038,6.42022168,3123.3,3122.7,4.43331417]
[1768153329238,6.42022168,3123.3,3122.8,0.97896482]
[1768153329624,6.42022168,3123.3,3122.7,3.45434935]
[1768153329935,6.42022168,3123.3,3122.8,0.44333142]
[1768153330438,0.9389586,3123.2,3122.8,0.44333142]
[1768153330631,0.9389586,3123.2,3122.7,0.252]
[1768153331732,7.36118028,3123.3,3122.7,0.252]
[1768153332449,6.42022168,3123.3,3122.8,0.97896482]
[1768153335128,0.001,3123.0,3122.8,0.97896482]
[1768153335327,0.001,3123.0,3122.9,0.97896482]
[1768153338941,0.001,3123.5,3123.0,0.97896482]
[1768153340759,0.001,3123.5,3123.1,0.97896482]
[1768153344348,0.001,3123.5,3123.2,0.97896482]
[1768153344694,0.001,3123.5,3123.2,1.39705365]
[1768153344964,0.9409586,3123.6,3123.2,1.39705365]
[1768153344965,3.20085679,3124.2,3123.4,0.97896482]
[1768153345166,0.96048715,3123.9,3123.5,0.252]
[1768153346356,0.96048715,3123.9,3123.5,1.23096482]
[1768153346954,4.14182154,3124.2,3123.5,1.23096482]
[1768153347273,2.0627294,3124.1,3123.5,1.23096482]
[1768153347450,0.68811544,3124.0,3123.5,1.23096482]
[1768153350175,0.68811544,3124.0,3123.5,0.252]
[1768153353582,1.62907404,3124.0,3123.5,0.252]
[1768153353880,0.68811544,3123.9,3123.5,0.252]
[1768153358077,0.001,3123.6,3123.5,0.252]
[1768153363691,0.001,3123.6,3123.3,4.12046019]
[1768153363891,0.001,3123.6,3123.4,0.252]
[1768153364294,0.001,3123.6,3123.4,4.37236436]
[1768153364472,1.9416304,3124.2,3123.4,5.12977446]
[1768153364684,0.68863838,3124.1,3123.4,4.37236436]
[1768153366859,4.87081203,3124.1,3123.4,1.17074392]
[1768153367062,1.66986157,3124.0,3123.4,0.252]
[1768153367404,0.68863838,3123.9,3123.4,0.252]
[1768153368261,0.98122319,3123.8,3123.4,0.252]
[1768153370495,0.98222319,3123.6,3123.5,0.252]
[1768153370675,0.98222319,3123.6,3123.2,3.20177685]
[1768153370860,0.98222319,3123.6,3123.3,0.252]
[1768153371421,0.98222319,3123.6,3123.0,2.15729186]
[1768153371610,0.98222319,3123.6,3123.4,0.252]
[1768153372696,0.89827177,3123.6,3123.4,0.252]
[1768153376021,0.88818509,3123.6,3123.4,0.252]
[1768153378315,4.16133844,3124.1,3123.4,0.252]
[1768153378622,0.98122319,3123.9,3123.4,0.252]
[1768153378916,1.67074531,3123.8,3123.4,0.252]
[1768153379120,0.98122319,3123.8,3123.4,0.252]
[1768153380820,0.98122319,3123.8,3123.5,0.252]
[1768153381590,0.98122319,3123.8,3123.1,3.20194678]
[1768153381791,0.98122319,3123.8,3123.2,0.252]
[1768153383088,1.67073389,3123.7,3123.2,0.252]
[1768153383293,0.47654774,3123.8,3123.2,0.252]
[1768153383488,0.68947576,3123.7,3123.6,0.002]
[1768153383826,0.68947576,3123.7,3123.6,0.254]
[1768153384818,0.95491835,3124.0,3123.6,0.254]
[1768153385127,0.88100262,3123.9,3123.6,0.254]
[1768153385323,0.68946945,3123.8,3123.6,0.254]
[1768153385692,1.91533478,3124.1,3123.6,0.254]
[1768153385893,0.68947915,3124.0,3123.6,0.254]
[1768153386114,1.6443975,3124.0,3123.6,0.254]
[1768153386304,0.94996054,3123.9,3123.6,0.254]
[1768153386505,0.68947915,3123.8,3123.6,0.254]
[1768153388525,1.63869152,3123.8,3123.6,0.254]
[1768153388726,0.94921237,3123.8,3123.6,0.254]
[1768153389324,0.26048139,3123.9,3123.6,0.254]
[1768153389525,0.6895019,3123.8,3123.6,0.254]
[1768153390599,0.87942147,3123.8,3123.6,0.254]
[1768153390800,0.18991957,3123.8,3123.6,0.254]
[1768153391001,0.94921237,3123.9,3123.6,0.254]
[1768153391200,0.68951187,3123.8,3123.6,0.254]
[1768153393109,0.94921237,3124.1,3123.6,0.254]
[1768153393407,1.63874053,3124.0,3123.6,0.254]
[1768153393608,0.68952816,3123.9,3123.6,0.254]
[1768153393918,0.85340221,3123.9,3123.6,0.254]
[1768153394118,0.68952816,3123.8,3123.6,0.254]
[1768153395819,0.001,3123.7,3123.6,0.254]
[1768153396226,0.001,3123.7,3123.6,0.19551971]
[1768153401339,0.001,3123.7,3123.6,1.19275362]
[1768153411665,0.001,3123.7,3123.6,4.39418786]
[1768153411828,0.68950005,3124.3,3123.7,0.99723391]
[1768153416659,0.68950005,3124.3,3123.8,0.94934064]
[1768153419328,0.001,3124.0,3123.8,0.94934064]
[1768153420449,0.001,3124.0,3123.6,1.14486035]
[1768153435382,0.001,3124.0,3123.6,0.19551971]
[1768153442255,0.001,3123.7,3123.6,0.19551971]
[1768153444389,0.001,3124.0,3123.6,4.73967943]
[1768153444563,0.001,3124.0,3123.7,0.90809933]
[1768153445688,0.68992808,3124.3,3123.9,0.90809933]
[1768153453911,0.68992808,3124.3,3123.8,0.92183639]
[1768153454413,0.001,3124.0,3123.8,0.92183639]
[1768153454586,0.001,3124.0,3123.8,1.71730649]
[1768153458792,0.001,3124.0,3123.9,0.252]
[1768153475933,0.47915967,3124.3,3123.9,4.36456789]
[1768153476140,0.14800003,3124.2,3123.9,0.252]
[1768153476428,0.14600004,3124.2,3123.9,4.36454829]
[1768153476730,0.14600004,3124.2,3124.0,0.43645483]
[1768153479198,0.14600004,3124.2,3124.0,4.54891086]
[1768153479420,1.12551381,3124.2,3124.0,3.63746976]
[1768153479730,1.12551381,3124.2,3124.0,0.43645483]
[1768153481334,0.14600004,3124.2,3124.0,0.43645483]
[1768153482232,0.14600004,3124.2,3124.0,4.56496016]
[1768153482531,0.14600004,3124.2,3124.1,0.48169602]
[1768153484524,0.14600004,3124.2,3124.1,1.39313712]
[1768153485939,0.97951377,3124.4,3124.1,0.48169602]
[1768153486136,0.97951377,3124.4,3124.2,0.06783429]
[1768153488939,0.001,3124.5,3124.2,0.06783429]
[1768153489137,0.001,3124.5,3124.2,0.97927539]
[1768153489343,0.001,3124.5,3124.2,0.06983429]
[1768153492236,0.001,3124.5,3124.2,0.98127539]
[1768153492436,0.001,3124.5,3124.2,1.3994948]
[1768153493246,0.001,3124.5,3124.2,1.41555092]
[1768153493651,0.001,3124.5,3124.2,1.3994948]
[1768153495416,0.001,3124.5,3124.2,0.4880537]
[1768153496538,0.001,3124.5,3124.2,0.06983429]
[1768153501729,0.001,3124.5,3124.2,0.002]
[1768153502435,0.001,3124.5,3124.2,0.9134411]
[1768153504663,0.001,3124.5,3124.2,0.002]
[1768153507631,0.69056992,3124.5,3124.2,0.002]
[1768153516180,1.61541209,3124.5,3124.2,0.002]